bitfinex/quotes_BTCUSD_20251007
["timestamp","ask_amount","ask_price","bid_price","bid_amount"]
[1759811756718,0.16861819,124470.0,124460.0,0.8149641]
[1759811756863,0.00793691,124470.0,124460.0,1.0430841]
[1759811757062,0.16961819,124470.0,124460.0,1.3830841]
[1759811757263,0.16961819,124470.0,124460.0,0.3975641]
[1759811757486,0.16961819,124470.0,124460.0,1.0431241]
[1759811757690,0.16961819,124470.0,124460.0,0.6537501]
[1759811757952,0.16961819,124470.0,124460.0,0.80469591]
[1759811758774,0.16961819,124470.0,124460.0,0.9653901]
[1759811758973,0.00893691,124470.0,124460.0,0.9653901]
[1759811759954,0.16961819,124470.0,124460.0,0.9653901]
[1759811762505,0.00893691,124470.0,124460.0,0.9653901]
[1759811763101,0.16961819,124470.0,124460.0,0.9653901]
[1759811763981,0.00379691,124470.0,124460.0,1.04941216]
[1759811764320,0.00593691,124470.0,124460.0,1.04851216]
[1759811764522,0.00893691,124470.0,124460.0,1.04851216]
[1759811764970,0.00593691,124470.0,124460.0,1.04851216]
[1759811765324,0.00893691,124470.0,124460.0,1.04851216]
[1759811765552,0.00379691,124470.0,124460.0,1.04941216]
[1759811765751,0.00593691,124470.0,124460.0,1.04941216]
[1759811766450,0.00893691,124470.0,124460.0,1.04851216]
[1759811766659,0.00593691,124470.0,124460.0,1.04941216]
[1759811767241,0.00379691,124470.0,124460.0,1.04941216]
[1759811769855,0.00379691,124470.0,124460.0,1.04997216]
[1759811770966,0.00379691,124470.0,124460.0,1.04941216]
[1759811773033,0.00379691,124470.0,124460.0,1.04997216]
[1759811774118,0.00379691,124470.0,124460.0,1.04941216]
[1759811774520,0.00379691,124470.0,124460.0,1.04997216]
[1759811775276,0.00379691,124470.0,124460.0,1.04941216]
[1759811777543,0.00581691,124470.0,124460.0,1.15431216]
[1759811777725,0.00896691,124470.0,124460.0,1.38259216]
[1759811778627,0.00896691,124470.0,124460.0,1.38255216]
[1759811779130,0.00379691,124470.0,124460.0,1.38345216]
[1759811781142,0.00379691,124470.0,124460.0,1.38401216]
[1759811782101,0.00279691,124470.0,124460.0,1.38401216]
[1759811782301,0.00079691,124470.0,124460.0,1.38401216]
[1759811788899,0.00079691,124470.0,124460.0,0.73833216]
[1759811789174,0.00079691,124470.0,124460.0,1.38349216]
[1759811789327,0.00079691,124470.0,124460.0,0.73777216]
[1759811789523,0.00079691,124470.0,124460.0,1.38349216]
[1759811791812,0.00079691,124470.0,124460.0,0.73777216]
[1759811791939,0.00281691,124470.0,124460.0,1.38255216]
[1759811792348,0.00281691,124470.0,124460.0,1.38345216]
[1759811792554,0.00079691,124470.0,124460.0,1.38345216]
[1759811793264,0.00079691,124470.0,124460.0,1.38401216]
[1759811794918,0.00079691,124470.0,124460.0,1.03721525]
[1759811795333,0.00079691,124470.0,124460.0,1.04076525]
[1759811799856,0.00079691,124470.0,124460.0,1.38076525]
[1759811801759,0.00039347,124480.0,124470.0,0.50068128]
[1759811801926,0.00039347,124480.0,124470.0,3.46132334]
[1759811802281,0.00039347,124480.0,124470.0,3.46222334]
[1759811802454,0.00039347,124480.0,124470.0,3.48222334]
[1759811803180,0.00339347,124480.0,124470.0,3.48222334]
[1759811804153,0.00339347,124480.0,124470.0,3.48278334]
[1759811804154,0.00344322,124480.0,124470.0,3.48278334]
[1759811804755,0.00344322,124480.0,124470.0,3.54205674]
[1759811805175,0.00344322,124480.0,124470.0,3.54149674]
[1759811805607,0.00344322,124480.0,124470.0,3.54205674]
[1759811807442,0.00364165,124480.0,124470.0,3.54205674]
[1759811812731,0.00364165,124480.0,124470.0,3.31393674]
[1759811813007,0.00364165,124480.0,124470.0,3.95925674]
[1759811813222,0.00364165,124480.0,124470.0,3.95869674]
[1759811813518,0.00364165,124480.0,124470.0,3.31247674]
[1759811813519,0.00879165,124480.0,124470.0,3.31247674]
[1759811813749,0.00879165,124480.0,124470.0,3.65405574]
[1759811814074,0.00879165,124480.0,124470.0,1.96410734]
[1759811814349,0.16946003,124480.0,124470.0,0.181314]
[1759811814514,0.16946003,124480.0,124470.0,0.489464]
[1759811814669,0.16946003,124480.0,124470.0,0.261544]
[1759811814870,0.16946003,124480.0,124470.0,0.489544]
[1759811815321,0.16846003,124480.0,124470.0,0.489544]
[1759811815520,0.16646003,124480.0,124470.0,0.746064]
[1759811815720,0.17046003,124480.0,124470.0,0.829544]
[1759811815946,0.16646003,124480.0,124470.0,0.829544]
[1759811816165,0.16846003,124480.0,124470.0,0.830544]
[1759811816366,0.17446003,124480.0,124470.0,0.179064]
[1759811816575,0.17246003,124480.0,124470.0,0.489504]
[1759811817066,0.17546003,124480.0,124470.0,0.490504]
[1759811818036,0.01479165,124480.0,124470.0,0.65118528]
[1759811820335,0.01161165,124480.0,124470.0,1.07628734]
[1759811820535,0.01479165,124480.0,124470.0,1.07628734]
[1759811820781,0.01479165,124480.0,124470.0,1.07430734]
[1759811821181,0.17546003,124480.0,124470.0,1.015285]
[1759811821548,0.17546003,124480.0,124470.0,0.99118528]
[1759811821944,0.01479165,124480.0,124470.0,0.99118528]
[1759811822961,0.17546003,124480.0,124470.0,0.99118528]
[1759811823173,0.20911164,124480.0,124470.0,0.99118528]
[1759811823510,0.04844326,124480.0,124470.0,0.99118528]
[1759811823714,0.17546003,124480.0,124470.0,0.67974528]
[1759811823867,0.17546003,124480.0,124470.0,0.99134528]
[1759811824297,0.17546003,124480.0,124470.0,0.67974528]
[1759811824500,0.17546003,124480.0,124470.0,0.99138528]
[1759811826477,0.01479165,124480.0,124470.0,0.99138528]
[1759811829905,0.00964165,124480.0,124470.0,0.99336528]
[1759811830053,0.00964165,124480.0,124470.0,1.07941734]
[1759811830245,0.00964165,124480.0,124470.0,1.09941734]
[1759811830454,0.00964165,124480.0,124470.0,1.09648734]
[1759811830917,0.01161165,124480.0,124470.0,1.09648734]
[1759811831121,0.01161165,124480.0,124470.0,1.09450734]
[1759811831122,0.01479165,124480.0,124470.0,1.09450734]
[1759811832123,0.01479165,124480.0,124470.0,1.01138528]
[1759811834214,0.01161165,124480.0,124470.0,1.01336528]
[1759811834419,0.00964165,124480.0,124470.0,1.01336528]
[1759811834654,0.01161165,124480.0,124470.0,1.01336528]
[1759811835878,0.01457165,124480.0,124470.0,1.01336528]
[1759811836088,0.01457165,124480.0,124470.0,1.01138528]
[1759811837141,0.01457165,124480.0,124470.0,0.81993103]
[1759811837338,0.01457165,124480.0,124470.0,2.04631403]
[1759811837891,0.01457165,124480.0,124470.0,2.02631403]
[1759811838774,0.01457165,124480.0,124470.0,1.95805003]
[1759811838975,0.01457165,124480.0,124470.0,1.66399103]
[1759811839182,0.01457165,124480.0,124470.0,1.53719403]
[1759811839391,0.17524003,124480.0,124470.0,1.05442775]
[1759811839555,0.17524003,124480.0,124470.0,0.113997]
[1759811839755,0.17524003,124480.0,124470.0,0.425677]
[1759811840294,0.17524003,124480.0,124470.0,0.31168]
[1759811840864,0.00964165,124480.0,124470.0,0.72002028]
[1759811841092,0.00964165,124480.0,124470.0,0.72324028]
[1759811841627,0.00964165,124480.0,124470.0,0.72002028]
[1759811842033,0.01165165,124480.0,124470.0,0.72002028]
[1759811842647,0.00964165,124480.0,124470.0,0.72002028]
[1759811843050,0.01165165,124480.0,124470.0,0.72002028]
[1759811845258,0.01165165,124480.0,124470.0,0.71797028]
[1759811845480,0.01461165,124480.0,124470.0,0.71797028]
[1759811851336,0.01165165,124480.0,124470.0,0.71797028]
[1759811851621,0.01461165,124480.0,124470.0,0.71797028]
[1759811852214,0.01165165,124480.0,124470.0,0.72002028]
[1759811852450,0.00964165,124480.0,124470.0,1.14636234]
[1759811852926,0.00964165,124480.0,124470.0,1.17045964]
[1759811853495,0.00664165,124480.0,124470.0,1.17045964]
[1759811853715,0.00764165,124480.0,124470.0,1.17045964]
[1759811854901,0.00164165,124480.0,124470.0,1.17045964]
[1759811857211,0.00164165,124480.0,124470.0,0.85877964]
[1759811857410,0.00360165,124480.0,124470.0,1.49926964]
[1759811857736,0.00360165,124480.0,124470.0,1.50125964]
[1759811857941,0.00164165,124480.0,124470.0,1.50125964]
[1759811859369,0.00164165,124480.0,124470.0,1.50430964]
[1759811860077,0.00164165,124480.0,124470.0,1.50125964]
[1759811860287,0.00164165,124480.0,124470.0,1.50430964]
[1759811860688,0.00164165,124480.0,124470.0,1.50125964]
[1759811860900,0.00360165,124480.0,124470.0,1.08369964]
[1759811861161,0.00360165,124480.0,124470.0,1.50113964]
[1759811861321,0.00360165,124480.0,124470.0,0.85549964]
[1759811861516,0.00656165,124480.0,124470.0,1.27094964]
[1759811861719,0.00656165,124480.0,124470.0,1.49914964]
[1759811861920,0.00360165,124480.0,124470.0,1.50113964]
[1759811862740,0.00164165,124480.0,124470.0,1.50418964]
[1759811863282,0.00164165,124480.0,124470.0,0.85854964]
[1759811863521,0.00360165,124480.0,124470.0,1.50121964]
[1759811863738,0.00656165,124480.0,124470.0,1.49922964]
[1759811864153,0.00360165,124480.0,124470.0,1.49922964]
[1759811864385,0.00360165,124480.0,124470.0,1.50121964]
[1759811865358,0.00164165,124480.0,124470.0,1.50121964]
[1759811868584,0.00379165,124480.0,124470.0,1.50121964]
[1759811868807,0.00164165,124480.0,124470.0,1.50417964]
[1759811870015,0.00064165,124480.0,124470.0,1.50417964]
[1759811871508,0.00064165,124480.0,124470.0,1.50617964]
[1759811886316,0.00064165,124480.0,124470.0,0.86045964]
[1759811886500,0.00064165,124480.0,124470.0,1.50289964]
[1759811886912,0.00064165,124480.0,124470.0,1.50585964]
[1759811887463,0.00064165,124480.0,124470.0,1.50285964]
[1759811887598,0.00279165,124480.0,124470.0,0.85749964]
[1759811887802,0.00064165,124480.0,124470.0,0.85749964]
[1759811888022,0.00064165,124480.0,124470.0,1.50577964]
[1759811892224,0.02,124500.0,124470.0,1.50577964]
[1759811892225,0.02,124500.0,124490.0,0.16065547]
[1759811892472,0.02049754,124500.0,124490.0,2.93970353]
[1759811892672,0.02089431,124500.0,124490.0,2.94471353]
[1759811892831,0.02089431,124500.0,124490.0,2.96521107]
[1759811893033,0.02089431,124500.0,124490.0,3.02618576]
[1759811893823,0.02289431,124500.0,124490.0,3.02618576]
[1759811894027,0.02589431,124500.0,124490.0,3.02718576]
[1759811894649,0.02089431,124500.0,124490.0,3.02618576]
[1759811895099,0.02289431,124500.0,124490.0,3.02618576]
[1759811905930,0.02289431,124500.0,124490.0,2.79834576]
[1759811906102,0.02289431,124500.0,124490.0,3.44334576]
[1759811906533,0.02289431,124500.0,124490.0,2.79834576]
[1759811906775,0.02799431,124500.0,124490.0,3.43833576]
[1759811907181,0.02799431,124500.0,124490.0,2.79543576]
[1759811907515,0.02799431,124500.0,124490.0,3.44043576]
[1759811907629,0.02498431,124500.0,124490.0,3.44043576]
[1759811912485,0.02799431,124500.0,124490.0,3.44043576]
[1759811912802,0.02498431,124500.0,124490.0,3.44043576]
[1759811914376,0.02799431,124500.0,124490.0,3.44043576]
[1759811914589,0.02498431,124500.0,124490.0,2.79543576]
[1759811914827,0.02799431,124500.0,124490.0,2.54812476]
[1759811915051,0.02799431,124500.0,124490.0,1.15116701]
[1759811915293,0.01998217,124500.0,124490.0,1.33291001]
[1759811915525,0.01998217,124500.0,124490.0,0.24409547]
[1759811915741,0.01998217,124500.0,124490.0,0.60573247]
[1759811916165,0.01998217,124500.0,124490.0,0.47169547]
[1759811916647,0.01998217,124500.0,124490.0,0.60889547]
[1759811916861,0.01998217,124500.0,124490.0,0.16065547]
[1759811917064,0.01798217,124500.0,124490.0,0.58747447]
[1759811917297,0.01798217,124500.0,124480.0,0.16066838]
[1759811917498,0.00303,124490.0,124480.0,0.50066838]
[1759811917711,0.00511,124490.0,124480.0,0.81170838]
[1759811917920,0.00511,124490.0,124480.0,0.80767973]
[1759811918129,0.00511,124490.0,124480.0,0.49663973]
[1759811918345,0.00511,124490.0,124480.0,0.80767973]
[1759811918511,0.00511,124490.0,124480.0,1.16465373]
[1759811918720,0.00511,124490.0,124480.0,1.16265373]
[1759811918927,0.00511,124490.0,124480.0,1.18675389]
[1759811919109,0.00811,124490.0,124480.0,1.18775389]
[1759811919726,0.01211,124490.0,124480.0,1.18775389]
[1759811920526,0.00908,124490.0,124480.0,1.18975389]
[1759811921810,0.01211,124490.0,124480.0,1.18975389]
[1759811921928,0.007,124490.0,124480.0,1.27595595]
[1759811922826,0.0071984,124490.0,124480.0,1.27595595]
[1759811934206,0.0041984,124490.0,124480.0,1.27495595]
[1759811934597,0.0051984,124490.0,124480.0,1.27495595]
[1759811935036,0.0041984,124490.0,124480.0,1.27495595]
[1759811935480,0.0001984,124490.0,124480.0,1.27495595]
[1759811935722,0.0001984,124490.0,124480.0,1.27595595]
[1759811935927,0.0001984,124490.0,124480.0,1.27795595]
[1759811940685,1e-08,124510.0,124490.0,0.50065547]
[1759811940856,0.00750605,124550.0,124540.0,0.50059097]
[1759811941005,0.00308986,124550.0,124540.0,3.27971697]
[1759811941205,0.00522986,124550.0,124540.0,3.58265862]
[1759811941458,0.00011986,124550.0,124540.0,3.58478862]
[1759811942067,0.00011986,124550.0,124540.0,3.59280773]
[1759811943376,0.00611986,124550.0,124540.0,3.59380773]
[1759811943742,0.00611986,124550.0,124540.0,3.65293341]
[1759811944577,0.00825986,124550.0,124540.0,3.65293341]
[1759811945609,0.00611986,124550.0,124540.0,3.65293341]
[1759811946602,0.00351882,124550.0,124540.0,3.65293341]
[1759811947815,0.00351882,124550.0,124540.0,3.65601341]
[1759811948019,0.00351882,124550.0,124540.0,3.73913547]
[1759811948348,0.00351882,124550.0,124540.0,3.09421547]
[1759811948596,0.00351882,124550.0,124540.0,3.73893547]
[1759811949445,0.0002,124580.0,124560.0,0.16055428]
[1759811949651,0.0002,124580.0,124570.0,3.18372935]
[1759811949652,0.01064632,124580.0,124570.0,3.18372935]
[1759811949886,0.0002,124580.0,124570.0,2.41133029]
[1759811950041,0.00234,124580.0,124570.0,2.42197661]
[1759811950241,0.00981301,124580.0,124570.0,2.42197661]
[1759811950442,0.01778301,124580.0,124570.0,2.42197661]
[1759811950699,0.01778301,124580.0,124570.0,0.95296161]
[1759811951153,0.00767301,124580.0,124570.0,0.79198116]
[1759811951342,0.01278301,124580.0,124570.0,1.36988367]
[1759811951914,0.01278301,124580.0,124570.0,1.28676161]
[1759811952440,0.01878301,124580.0,124570.0,1.20496161]
[1759811952631,0.01578301,124580.0,124570.0,1.28840161]
[1759811952853,0.01678301,124580.0,124570.0,1.28840161]
[1759811953069,0.01378301,124580.0,124570.0,1.28740161]
[1759811953406,0.01578301,124580.0,124570.0,1.28740161]
[1759811953612,0.01578301,124580.0,124570.0,0.64136161]
[1759811953811,0.01067301,124580.0,124570.0,1.04197367]
[1759811954300,0.01067301,124580.0,124570.0,1.10734116]
[1759811954508,0.01067301,124580.0,124570.0,0.72969367]
[1759811954649,0.01067301,124580.0,124570.0,1.37625367]
[1759811954852,0.0032,124580.0,124570.0,1.37625367]
[1759811955255,0.0022,124580.0,124570.0,1.37625367]
[1759811955466,0.0022,124580.0,124570.0,1.37925367]
[1759811955665,0.0002,124580.0,124570.0,1.37925367]
[1759811955833,0.0002,124580.0,124570.0,1.38025367]
[1759811956340,0.00765981,124580.0,124570.0,0.73061367]
[1759811956533,0.00972981,124580.0,124570.0,1.37713367]
[1759811957388,0.00972981,124580.0,124570.0,0.73061367]
[1759811957570,0.00972981,124580.0,124570.0,1.37705367]
[1759811958198,0.00972981,124580.0,124570.0,1.37492367]
[1759811958400,0.01266981,124580.0,124570.0,1.37488367]
[1759811958604,0.01266981,124580.0,124570.0,1.14560367]
[1759811958848,0.01266981,124580.0,124570.0,1.37492367]
[1759811959474,0.01266981,124580.0,124570.0,1.37392367]
[1759811959822,0.01466981,124580.0,124570.0,1.37092367]
[1759811960059,0.01526442,124580.0,124570.0,1.36027735]
[1759811960273,0.01626442,124580.0,124570.0,0.63071529]
[1759811960432,0.01626442,124580.0,124570.0,1.27715529]
[1759811960815,0.01626442,124580.0,124570.0,0.63071529]
[1759811961024,0.01626442,124580.0,124570.0,0.59780729]
[1759811961226,0.01626442,124580.0,124570.0,0.31268]
[1759811961431,0.17680383,124580.0,124570.0,0.31268]
[1759811961792,0.17680383,124580.0,124570.0,0.31272]
[1759811962952,0.17681166,124580.0,124570.0,0.31268]
[1759811963341,0.01627225,124580.0,124570.0,0.31268]
[1759811963534,0.01627225,124580.0,124570.0,0.38983229]
[1759811963737,0.01627225,124580.0,124570.0,0.47323229]
[1759811963939,0.01627225,124580.0,124570.0,1.238333]
[1759811964745,0.01333225,124580.0,124570.0,2.09825029]
[1759811964954,0.01627225,124580.0,124570.0,2.17958029]
[1759811967141,0.01627225,124580.0,124570.0,1.52844829]
[1759811967343,0.01333225,124580.0,124570.0,1.52844829]
[1759811967583,0.01126225,124580.0,124570.0,1.53051829]
[1759811967842,0.01333225,124580.0,124570.0,1.53051829]
[1759811968161,0.01333225,124580.0,124570.0,1.52844829]
[1759811968479,0.01627225,124580.0,124570.0,1.52844829]
[1759811969418,0.01333225,124580.0,124570.0,1.53051829]
[1759811969628,0.01333225,124580.0,124570.0,1.52844829]
[1759811969972,0.01627225,124580.0,124570.0,1.52844829]
[1759811970211,0.01126225,124580.0,124570.0,1.87051829]
[1759811970417,0.01126225,124580.0,124570.0,1.95677035]
[1759811970972,0.00379461,124580.0,124570.0,1.03111735]
[1759811971711,0.00179461,124580.0,124570.0,1.03111735]
[1759811971906,0.00079461,124580.0,124570.0,1.03111735]
[1759811972146,0.00179461,124580.0,124570.0,1.03111735]
[1759811972358,0.00179461,124580.0,124570.0,1.03211735]
[1759811973106,0.00179461,124580.0,124570.0,1.04953025]
[1759811973994,0.00179461,124580.0,124570.0,0.73677025]
[1759811974461,0.00179461,124580.0,124570.0,1.38028025]
[1759811975118,0.00179461,124580.0,124570.0,1.38341025]
[1759811979090,0.00179461,124580.0,124570.0,1.38337025]
[1759811981747,0.0052,124600.0,124590.0,0.50052652]
[1759811982008,0.00534918,124600.0,124590.0,3.05173458]
[1759811982176,0.00534918,124600.0,124590.0,3.70040458]
[1759811982352,0.00534918,124600.0,124590.0,3.70560458]
[1759811982537,0.00534918,124600.0,124590.0,3.70882458]
[1759811982741,0.00534918,124600.0,124590.0,3.71182458]
[1759811983976,0.00834918,124600.0,124590.0,3.71182458]
[1759811984623,0.00534918,124600.0,124590.0,3.71182458]
[1759811984833,0.00534918,124600.0,124590.0,3.71282458]
[1759811986496,0.00534918,124600.0,124590.0,3.7716978]
[1759811987392,0.00574547,124600.0,124590.0,3.7716978]
[1759811989106,0.00778547,124600.0,124590.0,3.1218778]
[1759811989491,0.01075547,124600.0,124590.0,3.7664478]
[1759811990125,0.01075547,124600.0,124590.0,3.1198078]
[1759811990370,0.01075547,124600.0,124590.0,2.2543738]
[1759811990602,0.01075547,124600.0,124590.0,1.3237478]
[1759811990745,0.01075547,124600.0,124590.0,1.55358574]
[1759811991387,0.01075547,124600.0,124590.0,1.55258574]
[1759811991589,0.01275547,124600.0,124590.0,1.54958574]
[1759811991993,0.01475547,124600.0,124590.0,1.54958574]
[1759811993019,0.01475547,124600.0,124590.0,0.81344652]
[1759811993231,0.00475547,124600.0,124580.0,0.16052843]
[1759811993437,0.00604,124600.0,124590.0,0.97344652]
[1759811993669,0.00604,124600.0,124590.0,0.47344652]
[1759811994121,0.00404,124600.0,124590.0,0.47344652]
[1759811994331,0.00504,124600.0,124590.0,0.47344652]
[1759811994761,0.00404,124600.0,124590.0,0.47344652]
[1759811995016,0.16455364,124600.0,124590.0,0.22948]
[1759811995211,0.16655364,124600.0,124590.0,0.31288]
[1759811995362,0.16952364,124600.0,124590.0,0.31288]
[1759811996764,0.16952364,124600.0,124580.0,0.16052843]
[1759811996966,0.00297,124590.0,124580.0,0.16052843]
[1759811997293,0.00297,124590.0,124580.0,0.47340843]
[1759811997502,0.00501,124590.0,124580.0,0.47340843]
[1759811998425,0.00501,124590.0,124580.0,0.0834]
[1759811998634,0.00501,124590.0,124580.0,0.24392843]
[1759811999128,0.01101,124590.0,124580.0,0.24392843]
[1759811999536,0.01101,124590.0,124580.0,0.47410186]
[1759811999835,0.01501,124590.0,124580.0,0.47510186]
[1759812002454,0.01501,124590.0,124580.0,0.47511284]
[1759812002683,0.27621094,124590.0,124580.0,0.00173343]
[1759812002864,0.27621094,124590.0,124580.0,0.31445343]
[1759812004336,0.25865858,124590.0,124580.0,0.31445343]
[1759812004569,0.09813206,124590.0,124580.0,0.47499284]
[1759812004746,0.01,124590.0,124580.0,1.47400784]
[1759812005148,0.01,124590.0,124580.0,1.38188784]
[1759812005756,0.01,124590.0,124580.0,1.37869784]
[1759812005915,0.01204,124590.0,124580.0,0.65391584]
[1759812006117,0.01501,124590.0,124580.0,0.94404684]
[1759812006317,0.01501,124590.0,124580.0,0.81507284]
[1759812006719,0.01,124590.0,124580.0,1.7653619]
[1759812007034,0.01,124590.0,124580.0,1.4493719]
[1759812007199,0.01,124590.0,124580.0,1.7437289]
[1759812007584,0.01501,124590.0,124580.0,1.29106184]
[1759812007701,0.01501,124590.0,124580.0,1.10437184]
[1759812008342,0.01501,124590.0,124580.0,0.99852284]
[1759812009869,0.01501,124590.0,124580.0,0.50227284]
[1759812010075,0.01501,124590.0,124580.0,0.81511284]
[1759812010655,0.01501,124590.0,124580.0,0.16227284]
[1759812010861,0.01501,124590.0,124580.0,0.47507284]
[1759812011077,0.27621107,124590.0,124580.0,0.00173343]
[1759812011280,0.25865858,124590.0,124580.0,0.81457343]
[1759812011481,0.25865858,124590.0,124580.0,0.31457343]
[1759812012744,0.09813206,124590.0,124580.0,0.47511284]
[1759812013161,0.01,124590.0,124580.0,0.47725284]
[1759812013312,0.01,124590.0,124580.0,0.48044284]
[1759812013727,0.01,124590.0,124580.0,0.47725284]
[1759812013935,0.01204,124590.0,124580.0,0.47511284]
[1759812014303,0.01501,124590.0,124580.0,0.47511284]
[1759812017688,0.01204,124590.0,124580.0,0.47511284]
[1759812017890,0.0151,124590.0,124580.0,0.47511284]
[1759812018855,0.17562652,124590.0,124580.0,0.23101343]
[1759812019064,0.17562652,124590.0,124580.0,0.47495284]
[1759812021202,0.17562652,124590.0,124580.0,0.47487284]
[1759812023348,0.25874858,124590.0,124580.0,0.00173343]
[1759812023565,0.25874858,124590.0,124580.0,0.31425343]
[1759812027366,0.25874858,124590.0,124580.0,0.00173343]
[1759812027529,0.25874858,124590.0,124580.0,0.23077343]
[1759812027730,0.01,124590.0,124580.0,0.23291343]
[1759812028095,0.01,124590.0,124580.0,0.39650284]
[1759812028638,0.01,124590.0,124580.0,0.88169584]
[1759812029428,0.01,124590.0,124580.0,0.87864584]
[1759812030237,0.01208,124590.0,124580.0,0.73361884]
[1759812030488,0.01,124590.0,124580.0,0.73666884]
[1759812031464,0.01,124590.0,124580.0,0.73361884]
[1759812031667,0.01,124590.0,124580.0,1.07361884]
[1759812032894,0.01,124590.0,124580.0,1.07666884]
[1759812033861,0.01,124590.0,124580.0,1.07361884]
[1759812034277,0.01,124590.0,124580.0,1.07666884]
[1759812034493,0.01,124590.0,124580.0,1.07361884]
[1759812035588,0.01208,124590.0,124580.0,1.07361884]
[1759812036469,0.01,124590.0,124580.0,1.07666884]
[1759812036656,0.01,124590.0,124580.0,1.1597909]
[1759812037689,0.006,124590.0,124580.0,1.1587909]
[1759812037890,0.008,124590.0,124580.0,1.1587909]
[1759812038962,0.002,124590.0,124580.0,1.1587909]
[1759812039990,0.002,124590.0,124580.0,1.07566884]
[1759812043022,0.00406,124590.0,124580.0,1.07047884]
[1759812043534,0.00406,124590.0,124580.0,1.07250884]
[1759812045110,0.002,124590.0,124580.0,1.07250884]
[1759812045305,0.002,124590.0,124580.0,1.07558884]
[1759812049404,0.002,124590.0,124580.0,0.84654884]
[1759812049600,0.0041,124590.0,124580.0,1.07035884]
[1759812049808,0.0041,124590.0,124580.0,1.15375884]
[1759812050008,0.002,124590.0,124580.0,1.15587884]
[1759812050240,0.002,124590.0,124580.0,0.84668884]
[1759812050442,0.002,124590.0,124580.0,1.15900884]
[1759812050767,0.0041,124590.0,124580.0,1.15587884]
[1759812051148,0.0041,124590.0,124580.0,1.15375884]
[1759812051711,0.0041,124590.0,124580.0,0.84143884]
[1759812052030,0.0041,124590.0,124580.0,1.15583884]
[1759812053906,0.002,124590.0,124580.0,1.15896884]
[1759812056310,0.0041,124590.0,124580.0,1.15583884]
[1759812056709,0.002,124590.0,124580.0,1.15583884]
[1759812056922,0.002,124590.0,124580.0,1.15896884]
[1759812057492,0.0041,124590.0,124580.0,1.15371884]
[1759812058555,0.00708,124590.0,124580.0,1.15371884]
[1759812059102,0.00708,124590.0,124580.0,0.84143884]
[1759812059308,0.00708,124590.0,124580.0,0.94479084]
[1759812060099,0.00708,124590.0,124580.0,1.07996684]
[1759812060295,0.00708,124590.0,124580.0,1.05343684]
[1759812060496,0.002,124590.0,124580.0,1.37072684]
[1759812060912,0.002,124590.0,124580.0,1.05868684]
[1759812061124,0.0041,124590.0,124580.0,1.36759684]
[1759812061281,0.0041,124590.0,124580.0,1.05555684]
[1759812061482,0.0041,124590.0,124580.0,1.36759684]
[1759812061687,0.00708,124590.0,124580.0,1.28207684]
[1759812061885,0.00498,124590.0,124580.0,1.36759684]
[1759812062070,0.002,124590.0,124580.0,1.37072684]
[1759812062713,0.0041,124590.0,124580.0,1.36759684]
[1759812063283,0.0041,124590.0,124580.0,1.36547684]
[1759812063485,0.002,124590.0,124580.0,1.37072684]
[1759812064179,0.0041,124590.0,124580.0,1.36759684]
[1759812064352,0.0041,124590.0,124580.0,1.36547684]
[1759812064554,0.00708,124590.0,124580.0,1.36547684]
[1759812064782,0.0041,124590.0,124580.0,1.36759684]
[1759812065802,0.0041,124590.0,124580.0,1.36547684]
[1759812066000,0.00708,124590.0,124580.0,1.36547684]
[1759812066196,0.0041,124590.0,124580.0,1.36759684]
[1759812066472,0.0041,124590.0,124580.0,1.36547684]
[1759812066869,0.00708,124590.0,124580.0,1.36547684]
[1759812067421,0.0041,124590.0,124580.0,1.36759684]
[1759812067621,0.0041,124590.0,124580.0,1.36547684]
[1759812067858,0.00708,124590.0,124580.0,1.36547684]
[1759812069292,0.00708,124590.0,124580.0,0.72979284]
[1759812069502,0.00708,124590.0,124580.0,0.47311284]
[1759812069703,0.00708,124590.0,124580.0,0.16127284]
[1759812069856,0.00708,124590.0,124580.0,0.47311284]
[1759812071295,0.00708,124590.0,124580.0,0.38971284]
[1759812071538,0.25072858,124590.0,124580.0,0.00073343]
[1759812071738,0.29185293,124590.0,124580.0,0.31257343]
[1759812072086,0.25072858,124590.0,124580.0,0.31257343]
[1759812075576,0.25072858,124590.0,124580.0,0.00073343]
[1759812075775,0.25072858,124590.0,124580.0,0.31257343]
[1759812076401,0.24872858,124590.0,124580.0,0.31257343]
[1759812076604,0.24872858,124590.0,124580.0,0.31357343]
[1759812076906,0.25672858,124590.0,124580.0,0.31357343]
[1759812077108,0.29765293,124590.0,124580.0,0.31357343]
[1759812078079,0.29765293,124590.0,124580.0,0.00173343]
[1759812078281,0.29765293,124590.0,124580.0,0.23009343]
[1759812078635,0.29765293,124590.0,124580.0,0.00173343]
[1759812078836,0.29765293,124590.0,124580.0,0.23009343]
[1759812082225,0.29765293,124590.0,124580.0,0.00173343]
[1759812082525,0.29765293,124590.0,124580.0,0.23005343]
[1759812082725,0.3217421,124590.0,124580.0,0.23005343]
[1759812083321,0.3217421,124590.0,124580.0,0.22905343]
[1759812083498,0.3177421,124590.0,124580.0,0.22905343]
[1759812083699,0.3177421,124590.0,124580.0,0.23005343]
[1759812083700,0.3227421,124590.0,124580.0,0.23005343]
[1759812084621,0.3187421,124590.0,124580.0,0.23005343]
[1759812085024,0.3237421,124590.0,124580.0,0.23005343]
[1759812086907,0.3237421,124590.0,124580.0,0.22997343]
[1759812087024,0.3237421,124590.0,124580.0,0.00173343]
[1759812094177,0.78622524,124590.0,124580.0,0.00173343]
[1759812094362,0.80350275,124590.0,124580.0,0.00173343]
[1759812096848,1.300438,124590.0,124580.0,0.00173343]
[1759812097043,0.80350361,124590.0,124580.0,0.00173343]
[1759812099013,0.8035098,124590.0,124580.0,0.00173343]
[1759812099536,0.8251116,124590.0,124580.0,0.00173343]
[1759812101102,0.82511839,124590.0,124580.0,0.00173343]
[1759812102318,0.82512967,124590.0,124580.0,0.00173343]
[1759812104731,0.90956967,124590.0,124580.0,0.00173343]
[1759812104932,0.82512967,124590.0,124580.0,0.00173343]
[1759812105754,0.82513791,124590.0,124580.0,0.00173343]
[1759812107332,0.85402239,124590.0,124580.0,0.00173343]
[1759812107912,1.35136191,124590.0,124580.0,0.00173343]
[1759812108127,0.85402239,124590.0,124580.0,0.00173343]
[1759812109418,0.87902239,124590.0,124580.0,0.00173343]
[1759812110769,0.85742059,124590.0,124580.0,0.00173343]
[1759812112465,0.67917218,124590.0,124580.0,0.00704343]
[1759812112671,0.68118218,124590.0,124580.0,0.00384343]
[1759812112875,0.68435218,124590.0,124580.0,0.00173343]
[1759812113085,0.76434898,124590.0,124580.0,0.00173343]
[1759812114808,0.86434898,124590.0,124580.0,0.00173343]
[1759812115012,0.86437517,124590.0,124580.0,0.00173343]
[1759812117827,1.41559917,124590.0,124580.0,0.00173343]
[1759812118596,1.39395875,124590.0,124580.0,0.00173343]
[1759812118800,1.38895875,124590.0,124580.0,0.00173343]
[1759812119110,0.89661923,124590.0,124580.0,0.00173343]